fUSD/lending_fUSD_20251215
["ID","MTS","AMOUNT","RATE_DAILY","PERIOD"]
[398518653,1765777527149,150.0,0.00015288,2]
[398518655,1765777530936,150.0,0.00015288,2]
[398518656,1765777533845,150.0,0.00015288,2]
[398518657,1765777533964,150.0,0.00015288,2]
[398518658,1765777534118,245.86986302,0.00015288,2]
[398518659,1765777539515,-206.64964047,0.00015732,2]
[398518660,1765777541068,150.0,0.00015288,2]
[398518661,1765777547405,150.0,0.00015288,2]
[398518662,1765777555917,166.66,0.00015004,2]
[398518663,1765777556120,166.66,0.0001532,2]
[398518664,1765777556329,166.66,0.00015636,2]
[398518665,1765777588373,-8.39693853,0.00015732,2]
[398518666,1765777588396,-243.59980886,0.0001578,2]
[398518667,1765777589727,-172.35522089,0.0001578,2]
[398518668,1765777591162,-649.82991091,0.0001578,2]
[398518669,1765777593303,-217.6285771,0.0001578,2]
[398518673,1765777633813,1289.23459438,0.00015,2]
[398518675,1765777831655,-398.84064774,0.00015776,2]
[398518676,1765777831667,-1156.61714367,0.00015776,2]
[398518677,1765777831714,-300.92044309,0.00015776,2]
[398518678,1765777831725,-317.2717655,0.00015776,2]
[398518679,1765777831734,-342.66648224,0.0001578,2]
[398518680,1765777831744,-250.0,0.00015796,2]
[398518681,1765777831753,-549.90444418,0.00015812,3]
[398518682,1765777831763,-166.66,0.00015952,2]
[398518683,1765777831772,-67.17858709,0.00016033,2]
[398518684,1765777831783,-3225.55981327,0.00016033,2]
[398518685,1765777831799,-253.87363661,0.00016033,2]
[398518686,1765777831809,-3336.83973026,0.00016033,2]
[398518692,1765777832446,-3030.76104923,0.00016033,2]
[398518701,1765777838965,-6123.51718354,0.00016033,2]
[398518702,1765777838975,-369.54116765,0.00016254,2]
[398518703,1765777838984,-166.66,0.00016268,2]
[398518704,1765777838997,-449.09555582,0.00016519,2]
[398518705,1765777839006,-194.18,0.00016537,2]
[398518706,1765777839016,-168.0,0.00016571,2]
[398518707,1765777839026,-166.66,0.00016584,2]
[398518708,1765777839035,-168.0,0.00016596,2]
[398518709,1765777839045,-343.49,0.00016598,2]
[398518710,1765777839054,-1502.0,0.00016606,2]
[398518711,1765777839067,-300.0,0.00016606,2]
[398518712,1765777839077,-550.0,0.00016615,2]
[398518713,1765777839086,-513.0,0.00016616,2]
[398518714,1765777839095,-9139.84,0.00016616,2]
[398518715,1765777839104,-19999.99,0.00016616,2]
[398518716,1765777839113,-500.0,0.00016619,2]
[398518717,1765777839123,-504.39679474,0.00016619,2]
[398518718,1765777839132,-790.56339539,0.00016638,2]
[398518719,1765777839141,-168.0,0.00016645,2]
[398518720,1765777839151,-378.12367162,0.0001666,2]
[398518721,1765777839161,-500.0,0.00016688,2]
[398518722,1765777839170,-367.82577868,0.00016689,2]
[398518723,1765777839179,-200.0,0.00016689,2]
[398518724,1765777839189,-1000.0,0.00016689,2]
[398518725,1765777839198,-1000.0,0.00016689,2]
[398518726,1765777839207,-1000.0,0.00016689,2]
[398518727,1765777839216,-1000.0,0.00016689,2]
[398518728,1765777839226,-151.0,0.00016689,2]
[398518729,1765777839235,-200.0,0.00016689,2]
[398518730,1765777839245,-508.42497145,0.00016689,2]
[398518731,1765777839255,-311.1,0.00016689,2]
[398518732,1765777839264,-574.12855637,0.00016689,2]
[398518733,1765777839274,-151.0,0.00016689,2]
[398518734,1765777839284,-151.0,0.00016689,2]
[398518735,1765777839293,-151.0,0.00016689,2]
[398518736,1765777839303,-151.0,0.00016689,2]
[398518737,1765777839312,-151.0,0.00016689,2]
[398518738,1765777839325,-151.0,0.00016689,2]
[398518739,1765777839335,-200.0,0.00016689,2]
[398518740,1765777839345,-151.0,0.00016689,2]
[398518741,1765777839355,-151.0,0.00016689,2]
[398518742,1765777839364,-151.0,0.00016689,2]
[398518743,1765777839374,-218.91418656,0.00016689,2]
[398518744,1765777839384,-151.0,0.00016689,2]
[398518745,1765777839393,-151.0,0.00016689,2]
[398518746,1765777839403,-261.07039907,0.00016689,2]
[398518747,1765777839412,-500.0,0.00016689,2]
[398518748,1765777839422,-500.0,0.00016689,2]
[398518749,1765777839431,-500.0,0.00016689,2]
[398518750,1765777839441,-500.0,0.00016689,2]
[398518751,1765777839451,-513.85864603,0.00016689,2]
[398518752,1765777839461,-500.0,0.00016689,2]
[398518753,1765777839471,-1000.0,0.00016689,2]
[398518754,1765777839481,-1000.0,0.00016689,2]
[398518755,1765777839490,-1000.0,0.00016689,2]
[398518756,1765777839500,-150.0,0.00016699,2]
[398518757,1765777839510,-150.0,0.00016699,2]
[398518758,1765777839519,-150.0,0.00016699,2]
[398518759,1765777839528,-153.17324755,0.00016699,2]
[398518760,1765777839538,-500.0,0.00016699,2]
[398518761,1765777839547,-793.0,0.00016699,2]
[398518762,1765777839557,-500.0,0.00016699,2]
[398518763,1765777839567,-568.0,0.00016699,2]
[398518764,1765777839576,-500.0,0.00016699,2]
[398518765,1765777839586,-150.0,0.00016699,2]
[398518766,1765777839597,-500.0,0.00016699,2]
[398518767,1765777839606,-150.0,0.00016699,2]
[398518768,1765777839616,-500.0,0.00016699,2]
[398518769,1765777839625,-150.0,0.00016699,2]
[398518770,1765777839635,-150.0,0.00016699,2]
[398518771,1765777839644,-150.55930981,0.00016699,2]
[398518772,1765777839654,-150.0,0.00016699,2]
[398518773,1765777839663,-1000.0,0.000167,2]
[398518774,1765777839673,-392.17383404,0.00016797,2]
[398518775,1765777839682,-2000.0,0.000168,2]
[398518776,1765777839692,-2000.0,0.000168,2]
[398518777,1765777839701,-2000.0,0.000168,2]
[398518778,1765777839710,-2000.0,0.000168,3]
[398518779,1765777839720,-569.0,0.000168,3]
[398518780,1765777839730,-1677.52010467,0.000168,2]
[398518781,1765777839743,-322.47989533,0.000168,2]
[398518782,1765777839753,-2000.0,0.000168,2]
[398518783,1765777839763,-2000.0,0.000168,3]
[398518785,1765777839773,-2000.0,0.000168,3]
[398518786,1765777839783,-1002.0,0.000168,2]
[398518787,1765777839793,-1000.0,0.000168,2]
[398518788,1765777839802,-1273.0,0.000168,2]
[398518789,1765777839812,-1000.0,0.000168,3]
[398518790,1765777839822,-4625.43795287,0.000168,2]
[398518791,1765777839832,-1374.83233114,0.000168,2]
[398518792,1765777839842,-1000.0,0.000168,2]
[398518793,1765777839852,-1000.0,0.00016803,2]
[398518794,1765777839862,-300.0,0.00016804,2]
[398518795,1765777839871,-4625.43795287,0.00016811,2]
[398518796,1765777839881,-1374.83233107,0.00016811,2]
[398518797,1765777839890,-448.92433912,0.0001682,2]
[398518798,1765777839900,-4625.43795287,0.00016822,2]
[398518799,1765777839909,-1374.83233107,0.00016822,2]
[398518800,1765777839924,-1301.14093479,0.00016823,2]
[398518801,1765777839933,-300.0,0.00016827,2]
[398518802,1765777839943,-4625.43795287,0.00016833,2]
[398518803,1765777839953,-1374.83233107,0.00016833,2]
[398518804,1765777839963,-150.0,0.00016836,2]
[398518805,1765777839972,-500.0,0.00016836,2]
[398518806,1765777839982,-793.0,0.00016836,2]
[398518807,1765777839992,-500.0,0.00016836,2]
[398518808,1765777840002,-568.0,0.00016836,2]
[398518809,1765777840012,-500.0,0.00016836,2]
[398518810,1765777840022,-500.0,0.00016836,2]
[398518811,1765777840031,-500.0,0.00016836,2]
[398518812,1765777840041,-250.0,0.00016836,2]
[398518813,1765777840050,-150.0,0.00016836,2]
[398518814,1765777840061,-4625.43795287,0.00016844,2]
[398518815,1765777840071,-1374.83233107,0.00016844,2]
[398518816,1765777840083,-1000.0,0.00016848,2]
[398518817,1765777840092,-168.0,0.00016849,2]
[398518818,1765777840107,-4625.43795287,0.00016856,2]
[398518819,1765777840116,-1374.83233107,0.00016856,2]
[398518820,1765777840126,-300.0,0.00016857,2]
[398518821,1765777840135,-200.0,0.00016864,2]
[398518822,1765777840144,-4625.43795287,0.00016867,2]
[398518823,1765777840153,-1374.83233107,0.00016867,2]
[398518824,1765777840163,-178.504,0.00016873,2]
[398518825,1765777840172,-12066.13495042,0.00016877,2]
[398518826,1765777840181,-4625.43795287,0.00016878,2]
[398518828,1765777840190,-1374.83233107,0.00016878,2]
[398518830,1765777840199,-1184.128,0.00016886,2]
[398518832,1765777840208,-168.0,0.00016888,2]
[398518834,1765777840217,-384.4884958,0.00016889,2]
[398518837,1765777840233,-4071.55773437,0.00016889,2]
[398518839,1765777840244,-169.3917227,0.00016889,2]
[398518841,1765777840254,-180.04228169,0.00016889,2]
[398518843,1765777840265,-1194.79004938,0.00016889,2]
[398518845,1765777840274,-3824.0,0.00016895,2]
[398518847,1765777840284,-500.0,0.00016899,2]
[398518849,1765777840293,-500.0,0.00016899,2]
[398518851,1765777840303,-600.0,0.000169,2]
[398518852,1765777840312,-150.67464717,0.000169,2]
[398518853,1765777840323,-400.0,0.000169,2]
[398518854,1765777840334,-638.55537377,0.000169,2]
[398518855,1765777841276,-1.7e-07,0.00016686,2]
[398518856,1765777841293,-635.43780155,0.00016686,2]
[398518857,1765777841303,-250.03828271,0.000169,2]
[398518858,1765777841312,-4625.43795287,0.000169,2]
[398518859,1765777841321,-1374.83233107,0.000169,2]
[398518860,1765777841331,-481.25235646,0.0001692,2]
[398518861,1765777841340,-168.0,0.0001694,2]
[398518862,1765777841350,-300.0,0.00016941,2]
[398518863,1765777841360,-500.0,0.00016966,2]
[398518864,1765777841370,-500.0,0.00016966,2]
[398518865,1765777841379,-318.19194469,0.00016966,2]
[398518866,1765777841389,-500.0,0.00016973,2]
[398518867,1765777841399,-500.0,0.00016973,2]
[398518868,1765777841408,-500.0,0.00016973,2]
[398518869,1765777841418,-500.0,0.00016973,2]
[398518870,1765777841427,-500.0,0.00016973,2]
[398518871,1765777841436,-500.0,0.00016973,2]
[398518872,1765777841446,-500.0,0.00016973,2]
[398518873,1765777841456,-500.0,0.00016973,2]
[398518874,1765777841465,-500.0,0.00016973,2]
[398518875,1765777841475,-500.0,0.00016973,2]
[398518876,1765777841485,-500.0,0.00016973,2]
[398518877,1765777841494,-97.87232241,0.00016973,2]
[398518878,1765777841518,-104.44455269,0.00016973,2]
[398518879,1765777841528,-500.0,0.00016973,2]
[398518880,1765777841537,-793.0,0.00016973,2]
[398518881,1765777841546,-500.0,0.00016973,2]
[398518882,1765777841556,-568.0,0.00016973,2]
[398518883,1765777841566,-500.0,0.00016973,2]
[398518884,1765777841575,-500.0,0.00016973,2]
[398518885,1765777841585,-500.0,0.00016973,2]
[398518886,1765777841595,-500.0,0.00016986,2]
[398518887,1765777841604,-150.0,0.00016986,2]
[398518888,1765777841614,-239.66027224,0.00016986,2]
[398518889,1765777841623,-151.0,0.00016993,2]
[398518890,1765777841633,-151.0,0.00016997,2]
[398518891,1765777841644,-1646.6128458,0.00016998,2]
[398518892,1765777841653,-500.0,0.00016998,2]
[398518893,1765777841663,-3451.0,0.00016999,2]
[398518894,1765777841672,-611.0,0.00016999,2]
[398518895,1765777841683,-1328.104,0.00016999,2]
[398518896,1765777841692,-1607.0,0.00016999,2]
[398518897,1765777841702,-1262.646,0.00016999,2]
[398518898,1765777841711,-642.0,0.00016999,2]
[398518899,1765777841720,-911.0,0.00016999,2]
[398518900,1765777841731,-250.0,0.00016999,2]
[398518901,1765777841741,-563.0,0.00016999,2]
[398518902,1765777841752,-4798.0,0.00016999,2]
[398518903,1765777841762,-8721.88160797,0.00016999,2]
[398518904,1765777841772,-2000.0,0.00016999,2]
[398518905,1765777841781,-2000.0,0.00016999,2]
[398518906,1765777841791,-2000.0,0.00016999,2]
[398518907,1765777841800,-2000.0,0.00016999,2]
[398518908,1765777841809,-2000.0,0.00016999,2]
[398518909,1765777841819,-2000.0,0.00016999,2]
[398518910,1765777841828,-2000.0,0.00016999,2]
[398518911,1765777841838,-143477.38387,0.00016999,2]
[398518912,1765777841848,-300.0,0.00016999,2]
[398518913,1765777841857,-32531.2674278,0.00016999,2]
[398518914,1765777841866,-300.0,0.00016999,2]
[398518915,1765777841876,-500.0,0.00016999,2]
[398518916,1765777841885,-500.0,0.00016999,2]
[398518917,1765777841895,-500.0,0.00016999,2]
[398518918,1765777841904,-500.0,0.00016999,2]
[398518919,1765777841916,-500.0,0.00016999,2]
[398518920,1765777841927,-500.0,0.00016999,2]
[398518921,1765777841936,-500.0,0.00016999,2]
[398518922,1765777841945,-500.0,0.00016999,2]
[398518923,1765777841956,-500.0,0.00016999,2]
[398518924,1765777841966,-500.0,0.00016999,2]
[398518925,1765777841975,-500.0,0.00016999,2]
[398518926,1765777841984,-500.0,0.00016999,2]
[398518927,1765777841995,-500.0,0.00016999,2]
[398518928,1765777842004,-500.0,0.00016999,2]
[398518929,1765777842013,-500.0,0.00016999,2]
[398518930,1765777842023,-397.64,0.00016999,2]
[398518931,1765777842032,-150.0,0.00017,2]
[398518932,1765777842041,-3985248.29606101,0.00017,2]
[398518941,1765777842782,-257.51449002,0.0001693,2]
[398518942,1765777842791,-2426.0,0.00016999,2]
[398518943,1765777842801,-22899.20706753,0.00017,2]
[398518944,1765777842946,-1559.19040186,0.00017,2]
[398518947,1765777845700,-332.818322,0.00017,2]
[398518948,1765777845756,-7415.94707886,0.00017,2]
[398518949,1765777845926,-332.818322,0.00017,2]
[398518990,1765778260873,1600.0,0.00015638,2]
[398518994,1765778316884,250.0,0.00015632,2]
[398519003,1765778343529,180.94,0.00012506,2]
[398519004,1765778343736,180.94,0.00015632,2]
[398519007,1765778351656,1000.0,0.00013699,2]
[398519028,1765778452210,200.0,0.00015633,2]
[398519067,1765778627533,1000.0,0.00015632,2]
[398519071,1765778643572,677.16,7.858e-05,2]
[398519072,1765778643975,677.16,8.272e-05,2]
[398519073,1765778644179,677.16,8.685e-05,2]
[398519074,1765778644380,677.16,9.099e-05,2]
[398519075,1765778644582,677.16,9.512e-05,2]
[398519076,1765778644794,677.16,9.926e-05,2]
[398519077,1765778644981,677.16,0.0001034,2]
[398519078,1765778645180,677.16,0.00010753,2]
[398519079,1765778645382,677.16,0.00011167,2]
[398519080,1765778645584,677.16,0.0001158,2]
[398519081,1765778645793,677.16,0.00011994,2]
[398519082,1765778645990,677.16,0.00012408,2]
[398519083,1765778646186,677.16,0.00012821,2]
[398519084,1765778646398,196.93,0.00013235,2]
[398519085,1765778646424,480.23,0.00013235,2]
[398519086,1765778646606,677.16,0.00013648,2]
[398519087,1765778646861,677.16,0.00014062,2]
[398519088,1765778647077,677.16,0.00014476,2]
[398519089,1765778647295,677.16,0.00014889,2]
[398519090,1765778647507,677.16,0.00015303,2]
[398519091,1765778647704,677.16,0.00015716,2]
[398519099,1765778733966,150.0,0.00015288,2]
[398519100,1765778734137,239.66027224,0.00015288,2]
[398519111,1765778760066,5298.0,0.000157,5]
[398519138,1765778935084,505.72,0.00015632,2]
[398519155,1765778971706,617.0,0.00016,30]
[398519200,1765779032929,-166.67,0.00016175,2]
[398519201,1765779032939,-376.0,0.00016351,2]
[398519202,1765779032947,-300.0,0.00016437,2]
[398519203,1765779032957,-1200.0,0.00016437,2]
[398519204,1765779032966,-376.0,0.00016437,2]
[398519205,1765779032975,-319.66598373,0.00016438,2]
[398519206,1765779032985,-2082.37526384,0.00016438,2]
[398519207,1765779032996,-776.28283243,0.00016438,2]
[398519208,1765779033006,-555.66208952,0.00016438,2]
[398519209,1765779033023,-4041.15047749,0.00016438,2]
[398519210,1765779033039,-429.83335299,0.00016438,2]
[398519211,1765779033049,-376.0,0.00016458,2]
[398519212,1765779033058,-2451.0,0.00016472,2]
[398519213,1765779033067,-309.59167576,0.000165,2]
[398519214,1765779033079,-365.35221994,0.000165,2]
[398519215,1765779033089,-2358.67315358,0.00016533,2]
[398519216,1765779033098,-674.94389568,0.00016544,2]
[398519217,1765779033107,-2358.67315354,0.00016574,2]
[398519218,1765779033117,-1502.0,0.00016577,2]
[398519219,1765779033126,-157.60922398,0.00016577,2]
[398519220,1765779033135,-300.0,0.00016577,2]
[398519221,1765779033146,-1000.0,0.00016579,2]
[398519222,1765779033155,-1000.0,0.00016579,2]
[398519223,1765779033165,-1000.0,0.00016579,2]
[398519224,1765779033175,-1000.0,0.00016579,2]
[398519225,1765779033185,-1000.0,0.00016579,2]
[398519226,1765779033194,-1000.0,0.00016579,2]
[398519227,1765779033204,-1000.0,0.00016579,2]
[398519228,1765779033213,-1000.0,0.00016579,2]
[398519229,1765779033223,-200.0,0.00016579,2]
[398519230,1765779033233,-1000.0,0.00016579,2]
[398519231,1765779033242,-1000.0,0.00016579,2]
[398519232,1765779033252,-1000.0,0.00016579,2]
[398519233,1765779033261,-151.0,0.00016579,2]
[398519234,1765779033270,-178.73649068,0.00016579,2]
[398519235,1765779033280,-151.0,0.00016579,2]
[398519236,1765779033289,-151.0,0.00016579,2]
[398519237,1765779033298,-151.0,0.00016579,2]
[398519238,1765779033306,-176.89868195,0.00016579,2]
[398519239,1765779033316,-574.12855637,0.00016579,2]
[398519240,1765779033324,-195.75320493,0.00016586,2]
[398519241,1765779033333,-324.7020707,0.00016586,2]
[398519242,1765779033342,-500.0,0.00016586,2]
[398519243,1765779033352,-500.0,0.00016586,2]
[398519244,1765779033361,-500.0,0.00016586,2]
[398519245,1765779033371,-500.0,0.00016586,2]
[398519246,1765779033380,-500.0,0.00016586,2]
[398519248,1765779033390,-500.0,0.00016586,2]
[398519249,1765779033399,-199.90788301,0.00016586,2]
[398519250,1765779033408,-500.0,0.00016586,2]
[398519251,1765779033417,-500.0,0.00016586,2]
[398519252,1765779033427,-500.0,0.00016586,2]
[398519253,1765779033436,-500.0,0.00016586,2]
[398519254,1765779033446,-500.0,0.00016586,2]
[398519255,1765779033455,-500.0,0.00016586,2]
[398519256,1765779033464,-500.0,0.00016586,2]
[398519257,1765779033473,-500.0,0.00016586,2]
[398519258,1765779033483,-151.77139012,0.00016586,2]
[398519259,1765779033491,-500.0,0.00016586,2]
[398519260,1765779033500,-500.0,0.00016586,2]
[398519261,1765779033509,-500.0,0.00016586,2]
[398519262,1765779033518,-500.0,0.00016586,2]
[398519263,1765779033527,-500.0,0.00016586,2]
[398519264,1765779033536,-500.0,0.00016586,2]
[398519265,1765779033545,-500.0,0.00016586,2]
[398519266,1765779033554,-500.0,0.00016586,2]
[398519268,1765779033563,-500.0,0.00016586,2]
[398519269,1765779033572,-500.0,0.00016586,2]
[398519270,1765779033582,-500.0,0.00016586,2]
[398519271,1765779033591,-500.0,0.00016586,2]
[398519272,1765779033601,-500.0,0.00016586,2]
[398519273,1765779033610,-500.0,0.00016586,2]
[398519274,1765779033619,-500.0,0.00016586,2]
[398519275,1765779033628,-500.0,0.00016586,2]
[398519276,1765779033637,-500.0,0.00016586,2]
[398519277,1765779033647,-500.0,0.00016586,2]
[398519278,1765779033656,-500.0,0.00016586,2]
[398519279,1765779033665,-500.0,0.00016586,2]
[398519280,1765779033674,-500.0,0.00016586,2]
[398519281,1765779033684,-349.85061266,0.00016586,2]
[398519282,1765779033693,-500.0,0.00016586,2]
[398519283,1765779033702,-500.0,0.00016586,2]
[398519284,1765779033711,-500.0,0.00016586,2]
[398519285,1765779033720,-500.0,0.00016586,2]
[398519286,1765779033729,-500.0,0.00016586,2]
[398519287,1765779033738,-500.0,0.00016586,2]
[398519288,1765779033747,-500.0,0.00016586,2]
[398519289,1765779033757,-500.0,0.00016586,2]
[398519290,1765779033766,-500.0,0.00016586,2]
[398519291,1765779033775,-500.0,0.00016586,2]
[398519292,1765779033785,-500.0,0.00016586,2]
[398519293,1765779033794,-500.0,0.00016586,2]
[398519294,1765779033803,-500.0,0.00016586,2]
[398519295,1765779033812,-500.0,0.00016586,2]
[398519296,1765779033822,-500.0,0.00016586,2]
[398519297,1765779033831,-198.22766233,0.00016586,2]
[398519298,1765779033841,-500.0,0.00016586,2]
[398519299,1765779033850,-500.0,0.00016586,2]
[398519300,1765779033859,-4778.16000397,0.00016587,2]
[398519301,1765779033874,-3943.721604,0.00016587,2]
[398519302,1765779033884,-1528.557,0.00016588,2]
[398519303,1765779033893,-178.50581784,0.00016588,2]
[398519304,1765779033902,-1019.52,0.00016588,2]
[398519305,1765779033911,-1019.52,0.00016588,2]
[398519306,1765779033921,-465.86708823,0.00016588,2]
[398519307,1765779033931,-674.94389568,0.00016589,2]
[398519308,1765779033941,-600.0,0.00016589,2]
[398519309,1765779033950,-1390.70659013,0.00016615,2]
[398519310,1765779033977,-250.0,0.00016615,2]
[398519312,1765779037944,-717.96656341,0.00016615,2]
[398519313,1765779037953,-376.0,0.00016617,2]
[398519314,1765779037962,-674.94389568,0.00016633,2]
[398519315,1765779037971,-2358.67315354,0.00016655,2]
[398519316,1765779037981,-1503.98712318,0.0001666,2]
[398519317,1765779037990,-687.92333942,0.0001666,2]
[398519318,1765779038000,-674.94389568,0.00016678,2]
[398519319,1765779038012,-2358.67315354,0.00016696,2]
[398519320,1765779038021,-500.0,0.00016699,2]
[398519321,1765779038031,-150.0,0.00016699,2]
[398519322,1765779038041,-500.0,0.00016699,2]
[398519323,1765779038050,-1013.0,0.00016699,2]
[398519324,1765779038059,-200.0,0.00016699,2]
[398519325,1765779038068,-500.0,0.00016699,2]
[398519326,1765779038077,-1693.0,0.00016699,2]
[398519327,1765779038086,-500.0,0.00016699,2]
[398519328,1765779038096,-500.0,0.00016699,2]
[398519329,1765779038105,-529.0,0.00016699,2]
[398519330,1765779038115,-150.0,0.00016699,2]
[398519331,1765779038124,-150.0,0.00016699,2]
[398519332,1765779038133,-500.0,0.00016699,2]
[398519333,1765779038142,-209.90590555,0.00016699,2]
[398519334,1765779038151,-1011.37663625,0.00016706,2]
[398519335,1765779038160,-378.83,0.00016708,2]
[398519336,1765779038169,-376.0,0.0001671,2]
[398519337,1765779038178,-500.0,0.00016712,2]
[398519338,1765779038188,-500.0,0.00016712,2]
[398519339,1765779038197,-1077.79550336,0.00016719,2]
[398519340,1765779038208,-674.94389568,0.00016722,2]
[398519341,1765779038217,-150.0,0.00016724,2]
[398519342,1765779038227,-376.0,0.00016734,2]
[398519343,1765779038237,-2358.67315354,0.00016737,2]
[398519344,1765779038247,-185.54,0.00016756,2]
[398519345,1765779038256,-674.94389568,0.00016767,2]
[398519346,1765779038266,-2358.67315354,0.00016778,2]
[398519347,1765779038276,-168.0,0.00016793,2]
[398519348,1765779038286,-674.94389568,0.00016811,2]
[398519349,1765779038295,-2358.67315354,0.00016818,2]
[398519350,1765779038304,-4346.92523355,0.0001683,2]
[398519351,1765779038314,-500.0,0.00016836,2]
[398519352,1765779038323,-500.0,0.00016836,2]
[398519353,1765779038337,-1013.0,0.00016836,2]
[398519354,1765779038346,-500.0,0.00016836,2]
[398519355,1765779038355,-500.0,0.00016836,2]
[398519356,1765779038364,-500.0,0.00016836,2]
[398519357,1765779038373,-529.0,0.00016836,2]
[398519358,1765779038382,-150.0,0.00016836,2]
[398519359,1765779038396,-500.0,0.00016836,2]
[398519360,1765779038405,-1000.0,0.00016837,2]
[398519361,1765779038414,-674.94389568,0.00016856,2]
[398519362,1765779038423,-2358.67315354,0.00016859,2]
[398519363,1765779038433,-150.0,0.00016861,2]
[398519364,1765779038442,-642.0,0.00016862,2]
[398519365,1765779038451,-1262.646,0.00016862,2]
[398519367,1765779038460,-200.0,0.00016864,2]
[398519369,1765779038469,-4798.0,0.0001687,2]
[398519371,1765779038479,-563.0,0.0001687,2]
[398519373,1765779038488,-6522.0,0.0001687,2]
[398519375,1765779038498,-1000.0,0.00016892,2]
[398519377,1765779038507,-181.84972126,0.00016899,2]
[398519379,1765779038516,-500.0,0.00016899,2]
[398519380,1765779038526,-500.0,0.00016899,2]
[398519381,1765779038536,-674.94389568,0.000169,2]
[398519382,1765779038545,-171.74,0.000169,2]
[398519383,1765779038555,-2358.67315354,0.000169,2]
[398519384,1765779038565,-191.44701644,0.000169,2]
[398519385,1765779038574,-218.53996822,0.00016902,2]
[398519386,1765779038583,-9999.99,0.00016922,2]
[398519387,1765779038593,-346.58,0.00016922,2]
[398519388,1765779038602,-427.63,0.00016922,2]
[398519389,1765779038612,-5061.74,0.00016922,2]
[398519390,1765779038621,-1529.71,0.00016922,2]
[398519391,1765779038630,-150.99,0.00016922,2]
[398519392,1765779038640,-10721.68,0.00016922,2]
[398519393,1765779038650,-297.53069723,0.00016923,2]
[398519394,1765779038659,-500.0,0.00016973,2]
[398519395,1765779038668,-500.8369678,0.00016973,2]
[398519396,1765779038678,-500.0,0.00016973,2]
[398519397,1765779038688,-501.17585924,0.00016973,2]
[398519398,1765779038697,-500.0,0.00016973,2]
[398519399,1765779038707,-500.0,0.00016973,2]
[398519400,1765779038717,-500.0,0.00016973,2]
[398519401,1765779038726,-500.0,0.00016973,2]
[398519402,1765779038735,-155.18423664,0.00016973,2]
[398519403,1765779038745,-500.0,0.00016973,2]
[398519404,1765779038755,-500.0,0.00016973,2]
[398519405,1765779038764,-500.0,0.00016973,2]
[398519406,1765779038773,-500.0,0.00016973,2]
[398519407,1765779038783,-591.9541487,0.00016973,2]
[398519409,1765779038792,-500.0,0.00016973,2]
[398519410,1765779038801,-500.0,0.00016973,2]
[398519412,1765779038811,-500.0,0.00016973,2]
[398519414,1765779038820,-500.0,0.00016973,2]
[398519415,1765779038829,-500.0,0.00016973,2]
[398519416,1765779038839,-500.64166088,0.00016973,2]
[398519417,1765779038849,-500.0,0.00016973,2]
[398519418,1765779038859,-302.79243627,0.00016973,2]
[398519419,1765779038876,-500.0,0.00016973,2]
[398519420,1765779038886,-500.0,0.00016973,2]
[398519421,1765779038897,-500.0,0.00016973,2]
[398519422,1765779038908,-500.0,0.00016973,2]
[398519423,1765779038918,-500.0,0.00016973,2]
[398519424,1765779038928,-1013.0,0.00016973,2]